{"text_format":"1","workbook":"xlsx","n_sheets":2,"sheets":["Načrt telesne kondicije","1. teden"],"not_rendered":{"charts":0,"images":0,"macros":1,"external_links":0,"defined_names":21,"comments":0,"pivot_tables":0},"unopened":[],"bounds":{"document_bytes":16777216,"sheet_cells":100000,"rows_first":2000,"rows_last":500,"rows_between":2000,"halvings":0,"cell_chars":16384,"cell_head_chars":4096},"cells_cut":0,"cells_raw":0,"read":"whole","date_system":"1900"}

{"sheet":"Načrt telesne kondicije","index":0,"n_rows":27,"n_cols":17,"rows_kept":27,"cut":false,"hidden":false,"merged":[[24,4,24,9],[24,11,24,16],[21,4,21,9],[22,4,22,9],[23,4,23,9],[21,11,21,16],[22,11,22,16],[23,11,23,16],[9,11,9,16],[10,11,10,16],[11,11,11,16],[12,11,12,16],[20,4,20,9],[20,11,20,16],[13,4,13,9],[13,11,13,16],[9,4,9,9],[10,4,10,9],[11,4,11,9],[12,4,12,9]]}
[]
[null,"NAČRT TELESNE KONDICIJE"]
[]
[null,"ZAČETNI DATUM",null,null,"OGREVANJE",null,null,null,null,null,null,"MOČ"]
[null,"2011-08-01",null,null,"VAJE","PONOVITVE","TEŽA","TEDNI","FREKVENCA","ZAČETEK",null,"VAJE","PONOVITVE","TEŽA","TEDNI","FREKVENCA","ZAČETEK"]
[null,"STAROST",null,null,"Ogrevanje 1",10,30,4,"Dnevno","2011-08-01",null,"Vaja za moč 1",7,100,4,"Dnevno","2011-08-01"]
[null,46,null,null,"Ogrevanje 2",10,40,4,"Dnevno","2011-08-01",null,"Vaja za moč 2",7,125,4,"Dnevno","2011-08-01"]
[null,"SPOL",null,null,"Ogrevanje 3",10,20,4,"Dnevno","2011-08-01",null,"Vaja za moč 3",7,75,4,"Dnevno","2011-08-01"]
[null,"P",null,null,"Ogrevanje 4",10,50,4,"Dnevno","2011-08-01",null,"Vaja za moč 4",7,85,4,"Dnevno","2011-08-01"]
[null,"VIŠINA (METRI)",null,null,"Opombe:"]
[null,6]
[null,"VIŠINA (CM)"]
[null,0]
[null,"TEŽA (KG)"]
[null,244,null,null,"KARDIO",null,null,null,null,null,null,"OHLAJANJE"]
[null,"PRSA (CM)",null,null,"VAJE","PONOVITVE","TEŽA","TEDNI","FREKVENCA","ZAČETEK",null,"VAJE","PONOVITVE","TEŽA","TEDNI","FREKVENCA","ZAČETEK"]
[null,48,null,null,"Kardio vaja 1",30,50,4,"Dnevno","2011-08-01",null,"Ohlajanje 1",10,30,4,"Dnevno","2011-08-01"]
[null,"PAS (CM)",null,null,"Kardio vaja 2",30,60,4,"Dnevno","2011-08-01",null,"Ohlajanje 2",10,40,4,"Dnevno","2011-08-01"]
[null,44,null,null,"Kardio vaja 3",30,40,4,"Dnevno","2011-08-01",null,"Ohlajanje 3",10,20,4,"Dnevno","2011-08-01"]
[null,"TELESNA MAŠČOBA (CILJ)",null,null,"Kardio vaja 4",30,30,4,"Dnevno","2011-08-01",null,"Ohlajanje 4",10,50,4,"Dnevno","2011-08-01"]
[null,9]
[null,"TELESNA MAŠČOBA"]
[null,11]
[null,"ITM (CILJ)"]
[null,22]
[null,"ITM"]
[null,{"$f":"IF(B15,(B15/(NačrtVišinaMetri*12+NačrtVišinaCentimetri)/(NačrtVišinaMetri*12+NačrtVišinaCentimetri)*ITM_Dejavnik),0)","v":33.092010493827161}]

{"sheet":"1. teden","index":1,"n_rows":30,"n_cols":17,"rows_kept":30,"cut":false,"hidden":false,"merged":[[9,4,9,16],[16,4,16,16],[23,4,23,16],[30,4,30,16]]}
[]
[null,"NAČRT TELESNE KONDICIJE"]
[null,null,null,null,null,null,null,null,null,null,null,null,null,null,null,null,"Opomba: podvoji ta list za vsak teden."]
[null,"TEDEN SE ZAČNE V",null,null,"OGREVANJE","NAČRT",null,{"$f":"ZačetniDatum","v":"2011-08-01"},null,{"$f":"H4+1","v":"2011-08-02"},null,{"$f":"J4+1","v":"2011-08-03"},null,{"$f":"L4+1","v":"2011-08-04"},null,{"$f":"N4+1","v":"2011-08-05"}]
[null,"2011-08-01",null,null,"VAJE","PONOVITVE","TEŽA","PONOVITVE","TEŽA","PONOVITVE","TEŽA","PONOVITVE","TEŽA","PONOVITVE","TEŽA","PONOVITVE","TEŽA"]
[null,"TRENUTNA TEŽA(KG)",null,null,{"$f":"'Načrt telesne kondicije'!E6","v":"Ogrevanje 1"},{"$f":"'Načrt telesne kondicije'!F6","v":10},{"$f":"'Načrt telesne kondicije'!G6","v":30},10,30,10,30,10,30,10,30,10,30]
[null,241,null,null,{"$f":"'Načrt telesne kondicije'!E7","v":"Ogrevanje 2"},{"$f":"'Načrt telesne kondicije'!F7","v":10},{"$f":"'Načrt telesne kondicije'!G7","v":40},10,40,10,40,10,40,10,40,10,40]
[null,"TRENUTNI OBSEG PRS (CM)",null,null,{"$f":"'Načrt telesne kondicije'!E8","v":"Ogrevanje 3"},{"$f":"'Načrt telesne kondicije'!F8","v":10},{"$f":"'Načrt telesne kondicije'!G8","v":20},10,20,10,20,10,20,10,20,10,20]
[null,48,null,null,{"$f":"'Načrt telesne kondicije'!E9","v":"Ogrevanje 4"},{"$f":"'Načrt telesne kondicije'!F9","v":10},{"$f":"'Načrt telesne kondicije'!G9","v":50},10,50,10,50,10,50,10,50,10,50]
[null,"TRENUTNI OBSEG PASU (CM)"]
[null,44,null,null,"MOČ","NAČRT",null,{"$f":"ZačetniDatum","v":"2011-08-01"},null,{"$f":"H11+1","v":"2011-08-02"},null,{"$f":"J11+1","v":"2011-08-03"},null,{"$f":"L11+1","v":"2011-08-04"},null,{"$f":"N11+1","v":"2011-08-05"}]
[null,"TRENUTNA TELESNA MAŠČOBA",null,null,"VAJE","PONOVITVE","TEŽA","PONOVITVE","TEŽA","PONOVITVE","TEŽA","PONOVITVE","TEŽA","PONOVITVE","TEŽA","PONOVITVE","TEŽA"]
[null,10.8,null,null,{"$f":"'Načrt telesne kondicije'!L6","v":"Vaja za moč 1"},{"$f":"'Načrt telesne kondicije'!M6","v":7},{"$f":"'Načrt telesne kondicije'!N6","v":100},5,100,6,90,7,100,7,100,7,100]
[null,"TELESNA MAŠČOBA (CILJ)",null,null,{"$f":"'Načrt telesne kondicije'!L7","v":"Vaja za moč 2"},{"$f":"'Načrt telesne kondicije'!M7","v":7},{"$f":"'Načrt telesne kondicije'!N7","v":125},5,125,6,125,5,125,7,125,7,125]
[null,9,null,null,{"$f":"'Načrt telesne kondicije'!L8","v":"Vaja za moč 3"},{"$f":"'Načrt telesne kondicije'!M8","v":7},{"$f":"'Načrt telesne kondicije'!N8","v":75},7,75,7,75,7,75,7,75,7,75]
[null,"TRENUTNI ITM",null,null,{"$f":"'Načrt telesne kondicije'!L9","v":"Vaja za moč 4"},{"$f":"'Načrt telesne kondicije'!M9","v":7},{"$f":"'Načrt telesne kondicije'!N9","v":85},6,85,7,85,7,85,7,85,7,85]
[null,{"$f":"IFERROR(IF(B7,(B7/('Načrt telesne kondicije'!NačrtVišinaMetri*12+'Načrt telesne kondicije'!NačrtVišinaCentimetri)/('Načrt telesne kondicije'!NačrtVišinaMetri*12+'Načrt telesne kondicije'!NačrtVišinaCentimetri)*ITM_Dejavnik),0),0)","v":32.68514151234568}]
[null,"ITM (CILJ)",null,null,"KARDIO","NAČRT",null,{"$f":"ZačetniDatum","v":"2011-08-01"},null,{"$f":"H18+1","v":"2011-08-02"},null,{"$f":"J18+1","v":"2011-08-03"},null,{"$f":"L18+1","v":"2011-08-04"},null,{"$f":"N18+1","v":"2011-08-05"}]
[null,{"$f":"'Načrt telesne kondicije'!B25","v":22},null,null,"VAJE","PONOVITVE","TEŽA","PONOVITVE","TEŽA","PONOVITVE","TEŽA","PONOVITVE","TEŽA","PONOVITVE","TEŽA","PONOVITVE","TEŽA"]
[null,null,null,null,{"$f":"'Načrt telesne kondicije'!E17","v":"Kardio vaja 1"},{"$f":"'Načrt telesne kondicije'!F17","v":30},{"$f":"'Načrt telesne kondicije'!G17","v":50},30,50,30,50,30,50,30,50,30,50]
[null,null,null,null,{"$f":"'Načrt telesne kondicije'!E18","v":"Kardio vaja 2"},{"$f":"'Načrt telesne kondicije'!F18","v":30},{"$f":"'Načrt telesne kondicije'!G18","v":60},25,60,26,60,29,60,30,60,30,60]
[null,null,null,null,{"$f":"'Načrt telesne kondicije'!E19","v":"Kardio vaja 3"},{"$f":"'Načrt telesne kondicije'!F19","v":30},{"$f":"'Načrt telesne kondicije'!G19","v":40},26,40,27,40,30,40,30,40,28,40]
[null,null,null,null,{"$f":"'Načrt telesne kondicije'!E20","v":"Kardio vaja 4"},{"$f":"'Načrt telesne kondicije'!F20","v":30},{"$f":"'Načrt telesne kondicije'!G20","v":30},30,30,30,30,30,30,30,30,30,30]
[]
[null,null,null,null,"OHLAJANJE","NAČRT",null,{"$f":"ZačetniDatum","v":"2011-08-01"},null,{"$f":"H25+1","v":"2011-08-02"},null,{"$f":"J25+1","v":"2011-08-03"},null,{"$f":"L25+1","v":"2011-08-04"},null,{"$f":"N25+1","v":"2011-08-05"}]
[null,null,null,null,"VAJE","PONOVITVE","TEŽA","PONOVITVE","TEŽA","PONOVITVE","TEŽA","PONOVITVE","TEŽA","PONOVITVE","TEŽA","PONOVITVE","TEŽA"]
[null,null,null,null,{"$f":"'Načrt telesne kondicije'!L17","v":"Ohlajanje 1"},{"$f":"'Načrt telesne kondicije'!M17","v":10},{"$f":"'Načrt telesne kondicije'!N17","v":30},10,30,10,30,10,30,10,30,10,30]
[null,null,null,null,{"$f":"'Načrt telesne kondicije'!L18","v":"Ohlajanje 2"},{"$f":"'Načrt telesne kondicije'!M18","v":10},{"$f":"'Načrt telesne kondicije'!N18","v":40},10,40,10,40,10,40,10,40,10,40]
[null,null,null,null,{"$f":"'Načrt telesne kondicije'!L19","v":"Ohlajanje 3"},{"$f":"'Načrt telesne kondicije'!M19","v":10},{"$f":"'Načrt telesne kondicije'!N19","v":20},10,20,10,20,10,20,10,20,10,20]
[null,null,null,null,{"$f":"'Načrt telesne kondicije'!L20","v":"Ohlajanje 4"},{"$f":"'Načrt telesne kondicije'!M20","v":10},{"$f":"'Načrt telesne kondicije'!N20","v":50},10,50,10,50,10,50,10,50,10,50]